Cogmind - Beta 13 @@@ ROGUE MODE // 2024.04.03 @ 16:55:26 Player: Creon Result: Destroyed by C-17 Slicer with Blade Saw Performance ------------- Evolutions (2) 1000 Regions Visited (5) 1000 Robots Destroyed (55) 275 Value Destroyed (2210) 2210 Prototype IDs (1) 20 Alien Tech Used (0) 0 Bonus (358) 358 TOTAL SCORE: 4863 Bonus ------- High Alert Combat Kills 158 Entered Garrisons 200 Cogmind --------- Core Integrity 0/550 Matter 17/300 Energy 100/100 System Corruption 0% Temperature Cool (0) Movement Core (350) Ox6 Location -8/Garrison Parts ------- > --- POWER (1) -------- (None) > --- PROPULSION (3) --- (None) > --- UTILITY (5) ------ Large Storage Unit Improved Targeting Computer > --- WEAPON (2) ------- (None) > --- INVENTORY (15) --- Ion Engine Ion Engine Armored Treads Improved Heat Sink Advanced Visual Processing Unit Reactive Plating Insulated Plating Relay Coupler [NC] (25) Relay Coupler [Sentry] (18) Heavy Particle Cannon Gauss Rifle Missile Launcher Peak State ------------ > --- POWER ------------ Improved Ion Engine > --- PROPULSION ------- Carbon-fiber Leg Carbon-fiber Leg Carbon-fiber Leg > --- UTILITY ---------- Large Storage Unit Improved Targeting Computer Recoil Stabilizer Improved Power Shielding Shield Generator > --- WEAPON ----------- Gauss Rifle Gauss Rifle > --- INVENTORY -------- Ion Engine Ion Engine Armored Treads Titanium Leg Improved Heat Sink Advanced Visual Processing Unit Reactive Plating Insulated Plating Light EM Pulse Cannon Heavy Particle Cannon High-powered Shotgun Gauss Rifle Gauss Rifle Rocket Launcher Rocket Launcher [Rating: 34] Favorites ----------- Power Ion Engine Engine Ion Engine Power Core Light Nuclear Core Propulsion Light Treads Treads Light Treads Leg Carbon-fiber Leg Hover Unit Hover Unit Utility Improved Targeting Computer Device Improved Heat Sink Storage Large Storage Unit Processor Improved Targeting Computer Protection Improved Power Shielding Weapon Gauss Rifle Energy Gun Backup Laser I Energy Cannon Light EM Pulse Cannon Ballistic Gun Gauss Rifle Launcher Rocket Launcher Build | -11 -10 -10 -9 -8 -8 ------- Run | Yrd Mat Min Mat Mat Gar Slots Evolved 4 | . . . 2 2 . Power . | . . . . . . Propulsion 1 | . . . 1 . . Utility 3 | . . . 1 2 . Weapon . | . . . . . . Parts Attached 76 | 5 8 2 23 34 4 Power 11 | 1 2 1 4 2 1 Engine 10 | 1 1 1 4 2 1 Core 1 | . 1 . . . . Reactor . | . . . . . . Propulsion 22 | 2 . 1 7 11 1 Treads 8 | . . . 5 2 1 Leg 13 | 2 . 1 1 9 . Wheel . | . . . . . . Hover 1 | . . . 1 . . Flight . | . . . . . . Utility 11 | . 4 . 3 4 . Device 3 | . . . 1 2 . Storage 3 | . 1 . 2 . . Processor 3 | . 2 . . 1 . Hackware . | . . . . . . Protection 2 | . 1 . . 1 . Artifact . | . . . . . . Weapon 32 | 2 2 . 9 17 2 Energy Gun . | . . . . . . Energy Cannon 6 | . . . 5 . 1 Ballistic Gun 18 | 2 2 . 2 11 1 Ballistic Cannon . | . . . . . . Launcher 8 | . . . 2 6 . Special Weapon . | . . . . . . Impact Weapon . | . . . . . . Slashing Weapon . | . . . . . . Piercing Weapon . | . . . . . . Special Melee Weapon . | . . . . . . Unidentified Prototypes 1 | . . . 1 . . Parts Lost 18 | . 1 4 1 7 5 Power 3 | . 1 1 . . 1 Propulsion 6 | . . 2 . 2 2 Utility 3 | . . . . 2 1 Weapon 6 | . . 1 1 3 1 Highest Loss Streak 5 | . 1 4 1 3 5 To Critical Strikes . | . . . . . . Average Slot Usage (%) 93 | . 94 99 95 95 68 Engine 9 | . 9 14 11 9 9 Treads 10 | . . . 22 9 . Leg 16 | . 28 27 8 17 16 Device 9 | . . . 8 17 . Storage 8 | . 5 . 10 9 9 Processor 12 | . 14 28 13 9 9 Protection 3 | . 3 . . 5 8 Energy Cannon 4 | . . . 13 . 5 Ballistic Gun 15 | . 28 28 6 16 10 Naked Turns . | . . . . . . Heaviest Build 40 | 6 21 11 33 40 37 Greatest Support 60 | 20 20 20 60 60 30 Greatest Overweight (x) 8 | . 1 1 2 1 8 Average Overweight (x) . | . . . . . 1 Largest Inventory Capacity 15 | 5 10 5 15 15 15 Average Capacity 11 | 5 6 5 10 15 15 Most Carried 15 | . 5 5 10 15 13 Average Carried 9 | . 3 4 7 13 11 Final Capacity 15 | 5 5 5 15 15 15 Final Carried 12 | . 5 3 10 11 12 Class Distribution -------------------- 60% | Mutant 39% | Scavenger-Mutant Dominant Class ---------------- Mutant | -10/Materials Mutant | -10/Mines Scavenger-Mutant | -9/Materials Mutant | -8/Materials Mutant | -8/Garrison Resources | -11 -10 -10 -9 -8 -8 ----------- Run | Yrd Mat Min Mat Mat Gar Matter Collected 1568 | 262 130 51 341 730 54 Remotely . | . . . . . . Salvage Created 2000 | 30 113 51 507 1129 170 Parts 113 | . 5 7 32 62 7 Haulers Intercepted 2 | . . . . 2 . Recyclers Shooed 2 | . . . . 2 . Parts Field Recycled . | . . . . . . Retrieved Matter . | . . . . . . Parts Self-Destructed . | . . . . . . Prevented . | . . . . . . Kills | -11 -10 -10 -9 -8 -8 ------- Run | Yrd Mat Min Mat Mat Gar Combat Hostiles Destroyed 45 | 1 3 3 11 24 3 Guns 28 | 1 3 3 5 14 2 Cannons 7 | . . . 6 . 1 AOE 10 | . . . . 10 . Classes Destroyed 9 | 1 1 . 1 6 . Worker 1 | . . . . 1 . Builder 5 | . . . . 5 . Hauler 2 | . . . . 2 . Mechanic 1 | . . . . 1 . Watcher 1 | . . . . 1 . Swarmer 4 | . 1 3 . . . Grunt 29 | 1 2 . 8 16 2 Sentry 10 | . . . 3 6 1 Hunter 2 | . . . . 2 . Best Kill Streak 10 | 1 1 3 5 10 2 Combat Bots Only 5 | 1 1 3 5 5 2 Max Kills in Single Turn 5 | 1 1 1 1 5 1 Gunslinging . | . . . . . . Exploded 4 | . . . . 4 . Melee . | . . . . . . Uniques/NPCs Destroyed . | . . . . . . Combat | -11 -10 -10 -9 -8 -8 -------- Run | Yrd Mat Min Mat Mat Gar Hostile Shots Fired 346 | 7 40 32 38 176 53 Missed 105 | 3 13 10 8 61 10 Damage Taken 3528 | 44 310 514 373 1591 696 Core 863 | . 85 138 80 183 377 Absorbed by Shields 326 | . . . . 326 . Redirected to Shielding 109 | . . . . 79 30 Regen/Repaired (Parts) 26 | . . . 26 . . Core Remaining (%) 63 | 100 . 10 80 . . Volleys Fired 146 | 3 19 7 26 79 12 Largest 2 | 2 2 2 2 2 2 Hottest 112 | 40 46 46 112 69 84 Shots Fired 271 | 6 38 14 39 151 23 Gun 223 | 6 38 14 20 133 12 Cannon 30 | . . . 19 . 11 Launcher 18 | . . . . 18 . Special . | . . . . . . Kinetic 223 | 6 38 14 20 133 12 Thermal . | . . . . . . Explosive 18 | . . . . 18 . Electromagnetic 30 | . . . 19 . 11 Robot Hit Streak 21 | 5 7 9 11 21 14 Robot Miss Streak 4 | . 3 2 2 4 2 Penetration Max 1 | . . . . 1 . Secondary Targets 1 | . . 1 . . . Max Gunslinging Chain 1 | . . 1 . . . Shots Hit Robots 183 | 5 25 8 30 97 18 Core Hits 89 | 2 7 3 14 56 7 Critical Kills 1 | . . . . 1 . Critical Parts Destroyed 2 | . . . . 1 1 Critical Strikes 3 | . . . . 2 1 Destroy 3 | . . . . 2 1 Melee Attacks . | . . . . . . Impact . | . . . . . . Slashing . | . . . . . . Piercing . | . . . . . . Sneak Attacks . | . . . . . . Combat Hostiles . | . . . . . . Follow-up Attacks . | . . . . . . Damage Inflicted 4976 | 53 270 106 550 3585 412 Guns 2657 | 53 269 106 258 1762 209 Cannons 495 | . . . 292 . 203 Explosions 1815 | . . . . 1815 . Melee . | . . . . . . Ramming 9 | . 1 . . 8 . Kinetic 2657 | 53 269 106 258 1762 209 Thermal 339 | . . . . 339 . Explosive 1476 | . . . . 1476 . Electromagnetic 495 | . . . 292 . 203 Impact . | . . . . . . Slashing . | . . . . . . Piercing . | . . . . . . Highest Corruption 1 | . 1 1 . . . Average Corruption 1 | . 1 1 . . . Corruption Purged . | . . . . . . Corruption Blocked . | . . . . . . Effects 4 | . 4 . . . . Message Errors 2 | . 2 . . . . Matter Fused 1 | . 1 . . . . Energy Discharges 1 | . 1 . . . . Overload Shots . | . . . . . . Overflow Damage 53 | . . . 3 50 . Projectiles 3 | . . . 3 . . Explosions 50 | . . . . 50 . Melee . | . . . . . . Knockbacks . | . . . . . . Impact . | . . . . . . Kinetic . | . . . . . . Secondary . | . . . . . . Self-Inflicted Damage 201 | . . . . 201 . Shots 4 | . . . . 4 . Rammed . | . . . . . . Targets Rammed 2 | . 1 . . 1 . Kicked 2 | . 1 . . 1 . Crushed . | . . . . . . Highest Temperature 153 | 6 33 12 36 34 153 Average Temperature 24 | 6 11 5 12 11 65 Received Heat Transfer 1122 | 24 147 . 198 564 189 Siege Activations . | . . . . . . Robots Corrupted . | . . . . . . Combat Hostiles . | . . . . . . Parts Fried 3 | . . . 2 . 1 Impact Corruptions . | . . . . . . Robots Melted . | . . . . . . Combat Hostiles . | . . . . . . Parts Melted . | . . . . . . Heat Transferred 200 | . . . . 200 . Parts Sabotaged . | . . . . . . Parts Stolen . | . . . . . . Parts Stripped . | . . . . . . Power Chain Reactions . | . . . . . . Alert | -11 -10 -10 -9 -8 -8 ------- Run | Yrd Mat Min Mat Mat Gar Peak Influence 707 | 20 126 110 152 707 598 Initial 453 | . 13 25 27 31 453 Average 167 | 2 56 51 69 243 510 Maximum Alert Level 3 | . . . . 3 2 Low Security (%) 69 | 100 100 100 100 42 . Level 1 16 | . . . . 41 . Level 2 12 | . . . . 12 100 Level 3 1 | . . . . 3 . Level 4 . | . . . . . . Level 5 . | . . . . . . High Security . | . . . . . . Max Security . | . . . . . . Squads Dispatched 11 | . 1 . 3 7 . Investigation 3 | . 1 . 1 1 . Extermination . | . . . . . . Reinforcement 5 | . . . 2 3 . Assault . | . . . . . . Garrison 3 | . . . . 3 . Intercept . | . . . . . . Searches Triggered . | . . . . . . Construction Impeded 1 | . . . . 1 . Haulers Reinforced . | . . . . . . Active Scanning Responses . | . . . . . . Cargo Convoy Interrupts . | . . . . . . Stealth | -11 -10 -10 -9 -8 -8 --------- Run | Yrd Mat Min Mat Mat Gar Distress Signals 4 | . . 1 2 1 . Communications Jammed . | . . . . . . Distress Signals . | . . . . . . Times Spotted 90 | 1 16 14 14 35 10 Peak Tracking Total 9 | 1 4 9 4 5 7 Tactical Retreats 6 | . 2 . . 2 2 Traps | -11 -10 -10 -9 -8 -8 ------- Run | Yrd Mat Min Mat Mat Gar Traps Triggered 4 | . 1 . . . 3 Indirectly . | . . . . . . Trap Hack Attempts . | . . . . . . Triggered . | . . . . . . Disarmed . | . . . . . . Reprogrammed . | . . . . . . Reused . | . . . . . . Traps Extracted . | . . . . . . Installed . | . . . . . . Triggered . | . . . . . . Machines | -11 -10 -10 -9 -8 -8 ---------- Run | Yrd Mat Min Mat Mat Gar Machines Disabled 10 | . . . . 9 1 Max in Single Turn 3 | . . . . 3 1 Garrison Relay 1 | . . . . . 1 Machines Repaired . | . . . . . . Machines Dismantled . | . . . . . . Machines Sabotaged . | . . . . . . Overloaded Fab Kills . | . . . . . . Hacking | -11 -10 -10 -9 -8 -8 --------- Run | Yrd Mat Min Mat Mat Gar Machines Accessed 14 | . 2 . 4 7 1 Terminals 10 | . 2 . 2 5 1 Fabricators . | . . . . . . Repair Stations 1 | . . . 1 . . Recycling Units 2 | . . . 1 1 . Scanalyzers . | . . . . . . Garrison Access 1 | . . . . 1 . Total Hacks 40 | . 9 . 10 20 1 Successful 29 | . 7 . 8 14 . Failed 10 | . 1 . 2 6 1 Catastrophic 1 | . . . . . 1 Database Lockouts 1 | . 1 . . . . Manual 6 | . 3 . 1 2 . Terminals 31 | . 9 . 5 16 1 Fabricators . | . . . . . . Repair Stations 3 | . . . 3 . . Recycling Units 5 | . . . 2 3 . Scanalyzers . | . . . . . . Garrison Access 1 | . . . . 1 . Terminal Hacks 21 | . 7 . 4 10 . Record 9 | . 3 . 3 3 . Emergency Access Points 2 | . 1 . . 1 . Alert Level 2 | . 1 . . 1 . Unreport Threat 1 | . . . . 1 . Locate Traps 2 | . . . 1 1 . Dispatch Records 2 | . 1 . . 1 . Maintenance Status 1 | . 1 . . . . Security Status 1 | . . . . 1 . Reinforcement Status 1 | . . . . 1 . Fabricator Hacks . | . . . . . . Repair Station Hacks 3 | . . . 3 . . Scan Component 1 | . . . 1 . . Repair 1 | . . . 1 . . Refit 1 | . . . 1 . . Recycling Unit Hacks 4 | . . . 1 3 . Process 1 | . . . . 1 . Report Inventory 2 | . . . 1 1 . Retrieve Matter 1 | . . . . 1 . Scanalyzer . | . . . . . . Garrison Access Hacks 1 | . . . . 1 . Unlock Access 1 | . . . . 1 . Unauthorized Hacks . | . . . . . . Terminals . | . . . . . . Fabricators . | . . . . . . Repair Stations . | . . . . . . Recycling Units . | . . . . . . Scanalyzers . | . . . . . . Garrison Access . | . . . . . . Data Cores Recovered . | . . . . . . Used . | . . . . . . Hacking Detections 10 | . 2 . 3 4 1 Full Trace Events 4 | . 2 . 1 1 . Feedback Events . | . . . . . . Feedback Blocked . | . . . . . . Robot Schematics Acquired . | . . . . . . Robots Built . | . . . . . . Authchips . | . . . . . . Time . | . . . . . . Total Robot Build Rating . | . . . . . . Part Schematics Acquired . | . . . . . . Parts Built . | . . . . . . Authchips . | . . . . . . Time . | . . . . . . Total Part Build Rating . | . . . . . . Parts Repaired 1 | . . . 1 . . Time 32 | . . . 32 . . Parts Recycled . | . . . . . . Recycled Matter 247 | . . . . 247 . Retrieved Matter 370 | . . . . 370 . Retrieved Components . | . . . . . . Parts Scanalyzed . | . . . . . . Part Schematics Acquired . | . . . . . . Parts Damaged . | . . . . . . Bothacking | -11 -10 -10 -9 -8 -8 ------------ Run | Yrd Mat Min Mat Mat Gar Used RIF Installer . | . . . . . . Robots Hacked . | . . . . . . Non-combat . | . . . . . . Combat . | . . . . . . Robot Hacks Applied . | . . . . . . Relay Couplers Released 5 | . . . . . 5 Machine Destruction 5 | . . . . . 5 Fabnet Peak Effective % . | . . . . . . Robots Rewired . | . . . . . . Allies Hacked . | . . . . . . Hacks Repelled . | . . . . . . Allies | -11 -10 -10 -9 -8 -8 -------- Run | Yrd Mat Min Mat Mat Gar Total Allies . | . . . . . . Largest Group . | . . . . . . Highest-Rated Group . | . . . . . . Highest-Rated Ally . | . . . . . . Total Orders . | . . . . . . Ally Attacks . | . . . . . . Total Damage . | . . . . . . Kills . | . . . . . . Allies Corrupted . | . . . . . . Allies Melted . | . . . . . . Intel | -11 -10 -10 -9 -8 -8 ------- Run | Yrd Mat Min Mat Mat Gar Robot Analysis Total . | . . . . . . Derelict Logs Recovered 1 | . . 1 . . . Drone Launches . | . . . . . . Drone Recoveries . | . . . . . . Exploration | -11 -10 -10 -9 -8 -8 ------------- Run | Yrd Mat Min Mat Mat Gar Turns Passed 3842 | 104 605 164 1145 1534 290 Spaces Moved 2161 | 77 387 118 591 870 118 Core 22 | 20 . . . . 2 Treads 804 | . . . 542 260 2 Legs 1335 | 57 387 118 49 610 114 Wheels . | . . . . . . Hover . | . . . . . . Flight . | . . . . . . Fastest Speed 50 | 50 120 120 120 110 190 Average Speed 141 | 101 126 121 165 130 194 Slowest Speed 450 | 120 190 190 260 190 450 Overloaded Moves . | . . . . . . Propulsion Burnouts . | . . . . . . Robots Hopped . | . . . . . . Cave-ins Triggered . | . . . . . . Exploration Rate (%) 37 | 7 49 42 44 62 23 Regions Visited 5 Branch Regions 1 Pre-discovered Areas . | . . . . . . Known Exits Taken 4 | . 1 1 1 1 . Unknown Exits Taken 1 | 1 . . . . . Scrap Searched . | . . . . . . Spaces Dug . | . . . . . . Terrain Destroyed 135 | . . . . 135 . Melee . | . . . . . . Projectile 1 | . . . . 1 . AOE 133 | . . . . 133 . Terrain Rammed . | . . . . . . Walls Destroyed . | . . . . . . Machines Disabled . | . . . . . . Actions | -11 -10 -10 -9 -8 -8 --------- Run | Yrd Mat Min Mat Mat Gar Total 2675 | 94 467 127 717 1115 155 Wait 206 | 10 40 1 56 91 8 Move 2156 | 76 386 117 590 869 118 Hop . | . . . . . . Pick Up 44 | . 8 . 13 20 3 Fast Attach 13 | 5 3 . 3 1 1 Attach 15 | . 1 2 4 6 2 Detach 2 | . 1 . 1 . . Swap 48 | . 4 . 16 27 1 Drop 33 | . 4 . 8 21 . Fire 146 | 3 19 7 26 79 12 Melee . | . . . . . . Ram . | . . . . . . Kick 2 | . 1 . . 1 . Crush . | . . . . . . Escape Stasis 10 | . . . . . 10 Rewire . | . . . . . . Trap . | . . . . . . Miscellaneous . | . . . . . . Route ------- -11/Scrapyard -10/Materials (discovered 2 exits: *Mat / *Min) -10/Mines -9/Materials (discovered 3 exits: *Mat x2 / [*Min]) -8/Materials (discovered 2 exits: [*Fac] / Gar) -8/Garrison History --------- Turn | Location | Event 2 | -11/Scrapyard | Met Revision 17 65 | -11/Scrapyard | Discovered new exit (range 8) 105 | -11/Scrapyard | Entered Materials 155 | -10/Materials | Discovered new exit (range 16) 309 | -10/Materials | Build established: Mutant 345 | -10/Materials | Central database locked down 400 | -10/Materials | Discovered new exit (range 4) 664 | -10/Materials | Identified exit to Mines 710 | -10/Materials | Entered Mines 845 | -10/Mines | Learned location of 1 exit from Materials 852 | -10/Mines | Assembled infested the area 855 | -10/Mines | Discovered new exit (range 6) 861 | -10/Mines | Core integrity fell below 50% 873 | -10/Mines | Core integrity fell below 20% 873 | -10/Mines | Identified exit to Materials 874 | -10/Mines | Entered Materials 874 | -9/Materials | Evolved 2 slots: Propulsion x1, Utility x1 875 | -9/Materials | Identified exit to Materials 903 | -9/Materials | Lost 4 parts (1p2n1w) 1092 | -9/Materials | Discovered new exit (range 15) 1342 | -9/Materials | Build established: Scavenger-Mutant 1624 | -9/Materials | Repaired Lgt. EM Pulse Cannon 1973 | -9/Materials | Discovered exit to Materials (range 10) 2019 | -9/Materials | Entered another Materials area 2019 | -8/Materials | Evolved 2 slots: Utility x2 2579 | -8/Materials | Discovered new exit (range 5) 2869 | -8/Materials | Build established: Mutant 3304 | -8/Materials | Garrison activated, responded to threat 3477 | -8/Materials | Lost 3 parts (1n1u1w) 3551 | -8/Materials | Identified exit to Garrison 3553 | -8/Materials | Entered Garrison 3680 | -8/Garrison | Garrison Relay disabled 3798 | -8/Garrison | Triggered checkpoint 3831 | -8/Garrison | Core integrity fell below 50% 3839 | -8/Garrison | Core integrity fell below 20% 3843 | -8/Garrison | Destroyed by C-17 Slicer with Blade Saw Last Messages --------------- 03803_ Carbon-fiber Leg destroyed. 03804_ Slug penetrates G-47 Trooper. 03804_ G-47 Trooper destroyed. 03807_ Slug penetrates G-47 Trooper. 03821_ Carbon-fiber Leg destroyed. 03822_ G-47 Trooper IFF system glitched. 03822_ Lgt. Nuclear Core fried. 03822_ G-47 Trooper destroyed. 03822_ Slug penetrates Wall. 03822_ Gauss Rifle severed. Garrison Door activated. 03825_ Lgt. EM Pulse Cannon destroyed. 03825_ Imp. Power Shielding destroyed. 03831_ Arm. Treads severed. 03833_ Hpw. Shotgun severed. 03833_ Imp. Ion Engine severed. 03834_ Acquired Arm. Treads. 03834_ Critical hit (Burn: +37). 03838_ Acquired Imp. Ion Engine. 03841_ Imp. Ion Engine destroyed. Map ----- +----------------------------------------------------+ | ?????????????????????????????????????????????????? | | ?????????????????????????????????????????????????? | | ?????????????????????????????????????????????????? | | ?????????????????????????????????????????????????? | | ?????????????????????????????????????????????????? | | ?????????????????????????????????????????????????? | | ?????????????????????????????????????????????????? | | ?????????????????????????????????????????????????? | | ?????????????????????????????????????????????????? | | ?????????????????????????????????????????????????? | | ?????????????????????????????????????????????????? | | ??????????????????????????######??"??????????????? | | ??????????????????????????# ? ???????????? | | ?????????????????????????? ?? ???????????? | | ?????????????????????????? ? ?? ???????? | | ??????????????????????????# #? #? #???????? | | ????????????????????????### ## ## #???????? | | ????????????????????????# "???????? | | ????????????????????????? "???????? | | ????????????????????????? ????????? | | ?????????????????????????? ? ??????????? | | ??????????????????????????# Y #? #????#???????? | | ????????????????###########Y ## ## ####????? | | ????????????????# ???? | | ????????????????# cc[ !% ???? | | ????????????????# @c [!%* #???????? | | ????????????????# ########+### ######???????? | | ????????????????# #??????? #???? #????????????? | | ????????######??# #????????#??????#????????????? | | ????????#"# #??# #????????????????????????????? | | ????????#" #??# ^^#????????????????????????????? | | ????????# ! #??# #????????????????????????????? | | ????????#"!! #??# #????????????????????????????? | | ????????#"# #??# #????????????????????????????? | | ????????### #??# #????????????????????????????? | | ??????????# #??# #????????????????????????????? | | ??????????# #??# #????????????????????????????? | | ????????### #??# #????????????????????????????? | | ????????# #??# #????????????????????????????? | | ????????# #??# #????????????????????????????? | | ????????# #??# #????????????????????????????? | | ????????### #??# #????????????????????????????? | | ??????????# #### #????????????????????????????? | | ??????????# #????????????????????????????? | | ??????????# ! #????????????????????????????? | | ??????????####### * #????????????????????????????? | | ????????????????#[[ #????????????????????????????? | | ??############### #????????????????????????????? | | ??#" #????????????????????????????? | | ??#"T"########### #????????????????????????????? | +----------------------------------------------------+ Best States ------------- Heat Dissipation 45 Energy Generation 14 Energy Capacity 265 Matter Stores 300 Matter Capacity 300 Sight Range 18 Terrain Scan Density 10 Armor Coverage 150 Power Shielding 66 Evasion (%) 55 Targeting Accuracy 6 Recoil Reduction 7 Item Schematics ----------------- None Robot Schematics ------------------ None Fabricated ------------ Nothing Alien Tech Used ----------------- None Achievements -------------- Everything Is Under Control I Survived The Infestation Part-time Mechanic Please Form A Line Troublemaker Challenges ------------ None Game ------ Seed SpreadRefineryCycler Manual? 0 Play Time 00:55:03 Cumulative 1.8 hours Start 2024.04.03 @ 15:49:24 End 2024.04.03 @ 16:55:26 Sessions 1 Manual Loads 0 Difficulty Rogue Special Mode None Game No. 3 Rogue 3 Adventurer 0 Explorer 0 Win Type - Total 0 Types 0/0/0/0/0/0/0/0/0 Lore% 2 Gallery% 5 Achievement% 5 Wizard Run 0 Options --------- Layout 0 ASCII 0 Keyboard 1 Movement Numpad Keybinds 0 Fullscreen 0 Font 16/Terminus Map View 96x60 Zoom Use 0% Tactical HUD 1 Map Filters NONE Filters NONE Steam 1 RUN: beb96e6f-2e8b-4d75-ac34-3c1e4d4f9567